[Event "December 5 Late 2023"]
[Site "https://www.chess.com"]
[Date "2023.12.05"]
[Round "2"]
[White "Wanyama, Harold"]
[Black "Arjun Kalyan"]
[Result "0-1"]
[Board "66"]
[TimeControl "180+1"]
[WhiteFideId "10000380"]
[BlackFideId "35018701"]
[WhiteElo "2460"]
[BlackElo "2741"]
[WhiteTeam "UGA"]
[BlackTeam "IND"]
[WhiteClock "0:01:07"]
[BlackClock "0:01:02"]

1. d4 {[%clk 0:02:57]}  Nf6 {[%clk 0:02:59]} 2. c4 {[%clk 0:02:57]}  g6 {[%clk 0:03:00]} 3. Nc3 {[%clk 0:02:56]}  Bg7 {[%clk 0:03:00]} 4. e4 {[%clk 0:02:57]}  d6 {[%clk 0:03:00]} 5. f3 {[%clk 0:02:57]}  O-O {[%clk 0:02:58]} 6. Nge2 {[%clk 0:02:58]}  Nbd7 {[%clk 0:02:57]} 7. Be3 {[%clk 0:02:59]}  c6 {[%clk 0:02:57]} 8. Qd2 {[%clk 0:03:00]}  a6 {[%clk 0:02:57]} 9. Nc1 {[%clk 0:02:57]}  b5 {[%clk 0:02:57]} 10. Be2 {[%clk 0:02:57]}  Bb7 {[%clk 0:02:56]} 11. O-O {[%clk 0:02:57]}  bxc4 {[%clk 0:02:57]} 12. Bxc4 {[%clk 0:02:56]}  d5 {[%clk 0:02:57]} 13. Be2 {[%clk 0:02:54]}  e5 {[%clk 0:02:55]} 14. exd5 {[%clk 0:02:53]}  Nxd5 {[%clk 0:02:51]} 15. Nxd5 {[%clk 0:02:52]}  cxd5 {[%clk 0:02:52]} 16. Nb3 {[%clk 0:02:47]}  Re8 {[%clk 0:02:42]} 17. Bf2 {[%clk 0:02:45]}  e4 {[%clk 0:02:39]} 18. Rfe1 {[%clk 0:02:39]}  Nb6 {[%clk 0:02:31]} 19. Nc5 {[%clk 0:02:36]}  Bc6 {[%clk 0:02:31]} 20. Rac1 {[%clk 0:02:36]}  Bb5 {[%clk 0:02:29]} 21. b3 {[%clk 0:02:15]}  Bxe2 {[%clk 0:02:14]} 22. Qxe2 {[%clk 0:02:16]}  Nd7 {[%clk 0:02:04]} 23. Nxa6 {[%clk 0:02:02]}  e3 {[%clk 0:01:59]} 24. Bg3 {[%clk 0:01:57]}  Bxd4 {[%clk 0:01:39]} 25. Nc7 {[%clk 0:01:55]}  Ba7 {[%clk 0:01:37]} 26. Nxd5 {[%clk 0:01:51]}  Ne5 {[%clk 0:01:34]} 27. Red1 {[%clk 0:01:49]}  h5 {[%clk 0:01:11]} 28. Nc7 {[%clk 0:01:28]}  Qe7 {[%clk 0:01:06]} 29. Nxa8 {[%clk 0:01:20]}  Rxa8 {[%clk 0:01:07]} 30. Rc7 {[%clk 0:01:07]}  Qxc7 {[%clk 0:01:02]} 0-1

[Event "December 5 Late 2023"]
[Site "https://www.chess.com"]
[Date "2023.12.05"]
[Round "2"]
[White "Schmakel, Sam"]
[Black "Arnold, Ken"]
[Result "1/2-1/2"]
[Board "68"]
[TimeControl "180+1"]
[WhiteFideId "2039311"]
[BlackFideId "2056836"]
[WhiteElo "2724"]
[BlackElo "2428"]
[WhiteTeam "USA"]
[BlackTeam "USA"]
[WhiteClock "0:00:11"]
[BlackClock "0:00:14"]

1. c4 {[%clk 0:03:00]}  Nf6 {[%clk 0:02:59]} 2. Nc3 {[%clk 0:02:59]}  e5 {[%clk 0:02:48]} 3. Nf3 {[%clk 0:02:56]}  Nc6 {[%clk 0:02:47]} 4. d3 {[%clk 0:02:56]}  d5 {[%clk 0:02:43]} 5. cxd5 {[%clk 0:02:57]}  Nxd5 {[%clk 0:02:43]} 6. Bd2 {[%clk 0:02:55]}  Bb4 {[%clk 0:02:42]} 7. g3 {[%clk 0:02:54]}  O-O {[%clk 0:02:41]} 8. Bg2 {[%clk 0:02:54]}  Bg4 {[%clk 0:02:26]} 9. O-O {[%clk 0:02:43]}  Nf6 {[%clk 0:02:15]} 10. Rc1 {[%clk 0:02:39]}  Qd7 {[%clk 0:02:09]} 11. Bg5 {[%clk 0:02:27]}  Be7 {[%clk 0:02:03]} 12. Bxf6 {[%clk 0:02:26]}  Bxf6 {[%clk 0:02:02]} 13. Ne4 {[%clk 0:02:26]}  Be7 {[%clk 0:01:59]} 14. Nc5 {[%clk 0:02:22]}  Bxc5 {[%clk 0:01:57]} 15. Rxc5 {[%clk 0:02:22]}  Rfe8 {[%clk 0:01:45]} 16. Qc1 {[%clk 0:02:17]}  Rac8 {[%clk 0:01:43]} 17. Qc3 {[%clk 0:02:07]}  Bxf3 {[%clk 0:01:35]} 18. Bxf3 {[%clk 0:02:08]}  Nd4 {[%clk 0:01:34]} 19. Kg2 {[%clk 0:02:07]}  Nxf3 {[%clk 0:01:34]} 20. Kxf3 {[%clk 0:02:07]}  f5 {[%clk 0:01:28]} 21. Kg2 {[%clk 0:02:02]}  b6 {[%clk 0:01:25]} 22. Rxe5 {[%clk 0:02:00]}  Rxe5 {[%clk 0:01:23]} 23. Qxe5 {[%clk 0:02:01]}  Re8 {[%clk 0:01:22]} 24. Qf4 {[%clk 0:01:55]}  Rxe2 {[%clk 0:01:20]} 25. Rc1 {[%clk 0:01:55]}  c5 {[%clk 0:01:19]} 26. b4 {[%clk 0:01:51]}  Qd5+ {[%clk 0:01:16]} 27. Kh3 {[%clk 0:01:50]}  Re6 {[%clk 0:01:13]} 28. g4 {[%clk 0:01:46]}  fxg4+ {[%clk 0:01:05]} 29. Kg3 {[%clk 0:01:44]}  Rf6 {[%clk 0:01:00]} 30. Qe4 {[%clk 0:01:31]}  Qh5 {[%clk 0:00:46]} 31. Kg2 {[%clk 0:01:21]}  Qh3+ {[%clk 0:00:36]} 32. Kg1 {[%clk 0:01:21]}  Qf3 {[%clk 0:00:32]} 33. bxc5 {[%clk 0:01:11]}  Qxe4 {[%clk 0:00:31]} 34. dxe4 {[%clk 0:01:11]}  Rc6 {[%clk 0:00:30]} 35. Rd1 {[%clk 0:01:04]}  bxc5 {[%clk 0:00:30]} 36. Kf1 {[%clk 0:00:51]}  Kf7 {[%clk 0:00:30]} 37. Rd7+ {[%clk 0:00:50]}  Ke6 {[%clk 0:00:31]} 38. Rxg7 {[%clk 0:00:49]}  Ke5 {[%clk 0:00:30]} 39. Ke2 {[%clk 0:00:34]}  Kxe4 {[%clk 0:00:29]} 40. Rxg4+ {[%clk 0:00:34]}  Kd5 {[%clk 0:00:28]} 41. Ra4 {[%clk 0:00:31]}  a6 {[%clk 0:00:28]} 42. Rh4 {[%clk 0:00:30]}  h6 {[%clk 0:00:27]} 43. Kd3 {[%clk 0:00:30]}  c4+ {[%clk 0:00:27]} 44. Kc3 {[%clk 0:00:30]}  Rf6 {[%clk 0:00:26]} 45. f4 {[%clk 0:00:21]}  Ke4 {[%clk 0:00:24]} 46. Kxc4 {[%clk 0:00:20]}  Rxf4 {[%clk 0:00:21]} 47. Rxh6 {[%clk 0:00:20]}  Kf3+ {[%clk 0:00:21]} 48. Kb3 {[%clk 0:00:19]}  a5 {[%clk 0:00:21]} 49. a4 {[%clk 0:00:17]}  Rb4+ {[%clk 0:00:20]} 50. Ka3 {[%clk 0:00:18]}  Ke3 {[%clk 0:00:20]} 51. Rh5 {[%clk 0:00:18]}  Kd3 {[%clk 0:00:18]} 52. Rxa5 {[%clk 0:00:18]}  Rh4 {[%clk 0:00:19]} 53. Rc5 {[%clk 0:00:11]}  Kd4 {[%clk 0:00:18]} 54. Rc1 {[%clk 0:00:10]}  Rxh2 {[%clk 0:00:18]} 55. a5 {[%clk 0:00:11]}  Kd5 {[%clk 0:00:17]} 56. Ka4 {[%clk 0:00:10]}  Ra2+ {[%clk 0:00:16]} 57. Kb5 {[%clk 0:00:11]}  Rb2+ {[%clk 0:00:17]} 58. Ka6 {[%clk 0:00:11]}  Kd6 {[%clk 0:00:17]} 59. Ka7 {[%clk 0:00:11]}  Kd7 {[%clk 0:00:18]} 60. a6 {[%clk 0:00:12]}  Rb3 {[%clk 0:00:18]} 61. Ka8 {[%clk 0:00:12]}  Rb4 {[%clk 0:00:18]} 62. a7 {[%clk 0:00:13]}  Rb3 {[%clk 0:00:18]} 63. Rh1 {[%clk 0:00:13]}  Kc7 {[%clk 0:00:19]} 64. Rh7+ {[%clk 0:00:13]}  Kc8 {[%clk 0:00:19]} 65. Rh8+ {[%clk 0:00:14]}  Kc7 {[%clk 0:00:19]} 66. Rb8 {[%clk 0:00:14]}  Rc3 {[%clk 0:00:19]} 67. Rf8 {[%clk 0:00:14]}  Rb3 {[%clk 0:00:19]} 68. Rf7+ {[%clk 0:00:15]}  Kc8 {[%clk 0:00:19]} 69. Rf1 {[%clk 0:00:15]}  Kc7 {[%clk 0:00:17]} 70. Rc1+ {[%clk 0:00:15]}  Kd7 {[%clk 0:00:18]} 71. Rc4 {[%clk 0:00:15]}  Kd8 {[%clk 0:00:17]} 72. Rd4+ {[%clk 0:00:16]}  Kc7 {[%clk 0:00:17]} 73. Rg4 {[%clk 0:00:16]}  Rb2 {[%clk 0:00:17]} 74. Rg8 {[%clk 0:00:16]}  Rb3 {[%clk 0:00:16]} 75. Rf8 {[%clk 0:00:16]}  Rb2 {[%clk 0:00:16]} 76. Rb8 {[%clk 0:00:16]}  Rc2 {[%clk 0:00:14]} 77. Rb7+ {[%clk 0:00:16]}  Kc8 {[%clk 0:00:14]} 78. Rb4 {[%clk 0:00:16]}  Rc1 {[%clk 0:00:13]} 79. Rf4 {[%clk 0:00:10]}  Rb1 {[%clk 0:00:13]} 80. Rf8+ {[%clk 0:00:09]}  Kc7 {[%clk 0:00:14]} 81. Rb8 {[%clk 0:00:09]}  Rc1 {[%clk 0:00:14]} 82. Rg8 {[%clk 0:00:10]}  Rb1 {[%clk 0:00:14]} 83. Rb8 {[%clk 0:00:10]}  Rc1 {[%clk 0:00:14]} 84. Rg8 {[%clk 0:00:11]}  Rb1 {[%clk 0:00:14]} 85. Rb8 {[%clk 0:00:11]} 1/2-1/2

[Event "December 5 Late 2023"]
[Site "https://www.chess.com"]
[Date "2023.12.05"]
[Round "2"]
[White "Bogaudinov, Rushan"]
[Black "Schnaider, Ilan"]
[Result "1-0"]
[Board "69"]
[TimeControl "180+1"]
[WhiteFideId "4129288"]
[BlackFideId "169013"]
[WhiteElo "2426"]
[BlackElo "2723"]
[WhiteTeam "RUS"]
[BlackTeam "ARG"]
[WhiteClock "0:00:28"]
[BlackClock "0:00:07"]

1. d4 {[%clk 0:02:32]}  Nf6 {[%clk 0:02:58]} 2. Nf3 {[%clk 0:02:32]}  e6 {[%clk 0:02:58]} 3. e3 {[%clk 0:02:32]}  d5 {[%clk 0:02:58]} 4. Be2 {[%clk 0:02:33]}  c5 {[%clk 0:02:57]} 5. O-O {[%clk 0:02:33]}  Nc6 {[%clk 0:02:57]} 6. a3 {[%clk 0:02:33]}  Be7 {[%clk 0:02:57]} 7. dxc5 {[%clk 0:02:33]}  Bxc5 {[%clk 0:02:57]} 8. b4 {[%clk 0:02:34]}  Be7 {[%clk 0:02:56]} 9. Bb2 {[%clk 0:02:35]}  O-O {[%clk 0:02:57]} 10. Nbd2 {[%clk 0:02:35]}  b6 {[%clk 0:02:57]} 11. c4 {[%clk 0:02:35]}  Bb7 {[%clk 0:02:57]} 12. cxd5 {[%clk 0:02:34]}  Nxd5 {[%clk 0:02:57]} 13. Rc1 {[%clk 0:02:32]}  Rc8 {[%clk 0:02:52]} 14. Qb3 {[%clk 0:02:32]}  Bf6 {[%clk 0:02:43]} 15. Ne4 {[%clk 0:02:24]}  Qe7 {[%clk 0:02:37]} 16. Nxf6+ {[%clk 0:02:23]}  Nxf6 {[%clk 0:02:33]} 17. Rfd1 {[%clk 0:02:21]}  Rfd8 {[%clk 0:02:30]} 18. Rxd8+ {[%clk 0:02:16]}  Rxd8 {[%clk 0:02:30]} 19. h3 {[%clk 0:02:11]}  h6 {[%clk 0:02:10]} 20. Qc4 {[%clk 0:01:59]}  e5 {[%clk 0:01:54]} 21. b5 {[%clk 0:01:52]}  Na5 {[%clk 0:01:51]} 22. Qc7 {[%clk 0:01:51]}  Qxc7 {[%clk 0:01:20]} 23. Rxc7 {[%clk 0:01:51]}  e4 {[%clk 0:00:54]} 24. Bxf6 {[%clk 0:01:43]}  gxf6 {[%clk 0:00:37]} 25. Nd4 {[%clk 0:01:43]}  Rd5 {[%clk 0:00:31]} 26. Bg4 {[%clk 0:01:17]}  Rc5 {[%clk 0:00:22]} 27. Rd7 {[%clk 0:01:13]}  Rd5 {[%clk 0:00:20]} 28. Nc6 {[%clk 0:01:09]}  Rxd7 {[%clk 0:00:03]} 29. Bxd7 {[%clk 0:01:09]}  a6 {[%clk 0:00:02]} 30. Nd4 {[%clk 0:00:59]}  Kf8 {[%clk 0:00:02]} 31. g4 {[%clk 0:00:52]}  axb5 {[%clk 0:00:02]} 32. Bxb5 {[%clk 0:00:50]}  Bc8 {[%clk 0:00:03]} 33. Kg2 {[%clk 0:00:49]}  Ke7 {[%clk 0:00:03]} 34. Kg3 {[%clk 0:00:50]}  Kd6 {[%clk 0:00:04]} 35. Kf4 {[%clk 0:00:50]}  Kd5 {[%clk 0:00:04]} 36. Be8 {[%clk 0:00:42]}  Be6 {[%clk 0:00:03]} 37. Bb5 {[%clk 0:00:38]}  Bc8 {[%clk 0:00:03]} 38. Bf1 {[%clk 0:00:36]}  Nc4 {[%clk 0:00:01]} 39. Bxc4+ {[%clk 0:00:35]}  Kxc4 {[%clk 0:00:02]} 40. Kxe4 {[%clk 0:00:36]}  Bd7 {[%clk 0:00:02]} 41. Kf4 {[%clk 0:00:33]}  Kc3 {[%clk 0:00:02]} 42. h4 {[%clk 0:00:33]}  Kb2 {[%clk 0:00:02]} 43. a4 {[%clk 0:00:27]}  Bxa4 {[%clk 0:00:02]} 44. Nf5 {[%clk 0:00:28]}  b5 {[%clk 0:00:02]} 45. Nxh6 {[%clk 0:00:28]}  b4 {[%clk 0:00:03]} 46. Nf5 {[%clk 0:00:27]}  Kc3 {[%clk 0:00:03]} 47. Nd4 {[%clk 0:00:27]}  b3 {[%clk 0:00:03]} 48. Nxb3 {[%clk 0:00:27]}  Bxb3 {[%clk 0:00:03]} 49. h5 {[%clk 0:00:27]}  Bc2 {[%clk 0:00:04]} 50. e4 {[%clk 0:00:28]}  Kd4 {[%clk 0:00:04]} 51. f3 {[%clk 0:00:28]}  f5 {[%clk 0:00:03]} 52. exf5 {[%clk 0:00:28]}  f6 {[%clk 0:00:02]} 53. h6 {[%clk 0:00:27]}  Bxf5 {[%clk 0:00:03]} 54. Kxf5 {[%clk 0:00:26]}  Ke3 {[%clk 0:00:03]} 55. f4 {[%clk 0:00:27]}  Kf3 {[%clk 0:00:04]} 56. h7 {[%clk 0:00:27]}  Kg3 {[%clk 0:00:04]} 57. h8=Q {[%clk 0:00:28]}  Kg2 {[%clk 0:00:05]} 58. Qxf6 {[%clk 0:00:28]}  Kh3 {[%clk 0:00:06]} 59. g5 {[%clk 0:00:27]}  Kh4 {[%clk 0:00:06]} 60. g6+ {[%clk 0:00:28]}  Kh5 {[%clk 0:00:07]} 61. Qg5# {[%clk 0:00:28]} 1-0

[Event "December 5 Late 2023"]
[Site "https://www.chess.com"]
[Date "2023.12.05"]
[Round "2"]
[White "Zakarian, David"]
[Black "Bolourchifard, Farzad"]
[Result "0-1"]
[Board "74"]
[TimeControl "180+1"]
[WhiteFideId "13301276"]
[BlackFideId "12510084"]
[WhiteElo "2385"]
[BlackElo "2712"]
[WhiteTeam "ARM"]
[BlackTeam "IRI"]
[WhiteClock "0:00:03"]
[BlackClock "0:00:19"]

1. d4 {[%clk 0:03:00]}  Nf6 {[%clk 0:02:59]} 2. c4 {[%clk 0:03:01]}  e6 {[%clk 0:02:59]} 3. Nf3 {[%clk 0:03:01]}  d5 {[%clk 0:02:59]} 4. cxd5 {[%clk 0:03:00]}  exd5 {[%clk 0:02:59]} 5. Nc3 {[%clk 0:03:00]}  c6 {[%clk 0:02:58]} 6. Bg5 {[%clk 0:03:00]}  Bf5 {[%clk 0:02:58]} 7. Qb3 {[%clk 0:02:57]}  Qb6 {[%clk 0:02:55]} 8. Qxb6 {[%clk 0:02:57]}  axb6 {[%clk 0:02:56]} 9. Bxf6 {[%clk 0:02:58]}  gxf6 {[%clk 0:02:57]} 10. e3 {[%clk 0:02:55]}  Nd7 {[%clk 0:02:55]} 11. Nh4 {[%clk 0:02:53]}  Bg6 {[%clk 0:02:55]} 12. Kd2 {[%clk 0:02:44]}  b5 {[%clk 0:02:50]} 13. Bd3 {[%clk 0:02:41]}  Nb6 {[%clk 0:02:43]} 14. b3 {[%clk 0:02:36]}  Bb4 {[%clk 0:02:38]} 15. Rhc1 {[%clk 0:02:26]}  Kd7 {[%clk 0:02:31]} 16. Nf5 {[%clk 0:02:17]}  Ra7 {[%clk 0:02:19]} 17. Rc2 {[%clk 0:01:09]}  Rha8 {[%clk 0:02:17]} 18. g4 {[%clk 0:01:06]}  Nc8 {[%clk 0:02:14]} 19. h4 {[%clk 0:00:28]}  Nd6 {[%clk 0:02:14]} 20. Nxd6 {[%clk 0:00:25]}  Kxd6 {[%clk 0:02:15]} 21. h5 {[%clk 0:00:24]}  Bxd3 {[%clk 0:02:14]} 22. Kxd3 {[%clk 0:00:24]}  Ra3 {[%clk 0:02:03]} 23. Rb2 {[%clk 0:00:19]}  Rg8 {[%clk 0:01:38]} 24. f3 {[%clk 0:00:19]}  f5 {[%clk 0:01:19]} 25. Rg1 {[%clk 0:00:17]}  fxg4 {[%clk 0:01:15]} 26. Rxg4 {[%clk 0:00:16]}  Raa8 {[%clk 0:01:12]} 27. Rbg2 {[%clk 0:00:14]}  Rxg4 {[%clk 0:01:12]} 28. Rxg4 {[%clk 0:00:14]}  Bxc3 {[%clk 0:01:12]} 29. Kxc3 {[%clk 0:00:15]}  Rxa2 {[%clk 0:01:12]} 30. Rg7 {[%clk 0:00:16]}  Ke6 {[%clk 0:01:10]} 31. Rxh7 {[%clk 0:00:16]}  Re2 {[%clk 0:01:05]} 32. Kd3 {[%clk 0:00:16]}  Rf2 {[%clk 0:01:06]} 33. f4 {[%clk 0:00:15]}  b4 {[%clk 0:01:06]} 34. Rh6+ {[%clk 0:00:15]}  Ke7 {[%clk 0:01:05]} 35. Rh8 {[%clk 0:00:13]}  Rb2 {[%clk 0:01:06]} 36. h6 {[%clk 0:00:11]}  Rxb3+ {[%clk 0:01:04]} 37. Kd2 {[%clk 0:00:12]}  Rb2+ {[%clk 0:01:04]} 38. Kd3 {[%clk 0:00:12]}  Rh2 {[%clk 0:01:05]} 39. h7 {[%clk 0:00:12]}  b5 {[%clk 0:01:01]} 40. Rc8 {[%clk 0:00:10]}  Rxh7 {[%clk 0:00:58]} 41. Rxc6 {[%clk 0:00:11]}  Rh2 {[%clk 0:00:48]} 42. Rb6 {[%clk 0:00:08]}  b3 {[%clk 0:00:34]} 43. Rxb5 {[%clk 0:00:08]}  b2 {[%clk 0:00:34]} 44. Kc3 {[%clk 0:00:06]}  Ke6 {[%clk 0:00:29]} 45. f5+ {[%clk 0:00:03]}  Kf6 {[%clk 0:00:25]} 46. Rxb2 {[%clk 0:00:02]}  Rxb2 {[%clk 0:00:25]} 47. Kxb2 {[%clk 0:00:03]}  Kxf5 {[%clk 0:00:25]} 48. Kc3 {[%clk 0:00:04]}  Ke4 {[%clk 0:00:26]} 49. Kd2 {[%clk 0:00:05]}  Kf3 {[%clk 0:00:18]} 50. Kd3 {[%clk 0:00:05]}  f5 {[%clk 0:00:18]} 51. Kd2 {[%clk 0:00:06]}  Kf2 {[%clk 0:00:19]} 52. Kd3 {[%clk 0:00:06]}  Ke1 {[%clk 0:00:19]} 53. Kc3 {[%clk 0:00:05]}  Ke2 {[%clk 0:00:19]} 54. Kb4 {[%clk 0:00:05]}  Kxe3 {[%clk 0:00:18]} 55. Kc5 {[%clk 0:00:05]}  Ke4 {[%clk 0:00:18]} 56. Kd6 {[%clk 0:00:03]}  Kxd4 {[%clk 0:00:19]} 0-1

[Event "December 5 Late 2023"]
[Site "https://www.chess.com"]
[Date "2023.12.05"]
[Round "2"]
[White "Rosen, Eric"]
[Black "Alvarado, Carlos"]
[Result "1-0"]
[Board "75"]
[TimeControl "180+1"]
[WhiteFideId "2032562"]
[BlackFideId "3800555"]
[WhiteElo "2711"]
[BlackElo "2382"]
[WhiteTeam "USA"]
[BlackTeam "PER"]
[WhiteClock "0:00:07"]
[BlackClock "0:00:00"]

1. e4 {[%clk 0:03:00]}  c6 {[%clk 0:02:59]} 2. d4 {[%clk 0:03:00]}  d5 {[%clk 0:02:59]} 3. Nc3 {[%clk 0:03:01]}  dxe4 {[%clk 0:02:58]} 4. Nxe4 {[%clk 0:03:02]}  Nf6 {[%clk 0:02:59]} 5. Nxf6+ {[%clk 0:03:02]}  exf6 {[%clk 0:02:59]} 6. Be3 {[%clk 0:03:03]}  Bd6 {[%clk 0:02:59]} 7. Bd3 {[%clk 0:03:03]}  Na6 {[%clk 0:02:59]} 8. a3 {[%clk 0:02:46]}  O-O {[%clk 0:02:54]} 9. Ne2 {[%clk 0:02:46]}  Re8 {[%clk 0:02:54]} 10. O-O {[%clk 0:02:45]}  Nc7 {[%clk 0:02:52]} 11. c4 {[%clk 0:02:45]}  Bg4 {[%clk 0:02:35]} 12. Qd2 {[%clk 0:02:40]}  a5 {[%clk 0:01:37]} 13. Ng3 {[%clk 0:02:35]}  a4 {[%clk 0:01:28]} 14. Rae1 {[%clk 0:02:33]}  b5 {[%clk 0:01:07]} 15. Qc2 {[%clk 0:02:02]}  g6 {[%clk 0:00:54]} 16. Ne4 {[%clk 0:01:48]}  Bf8 {[%clk 0:00:44]} 17. Nc5 {[%clk 0:00:59]}  bxc4 {[%clk 0:00:40]} 18. Qxc4 {[%clk 0:00:54]}  Qd5 {[%clk 0:00:24]} 19. Qc2 {[%clk 0:00:50]}  Bxc5 {[%clk 0:00:19]} 20. dxc5 {[%clk 0:00:51]}  Rab8 {[%clk 0:00:10]} 21. h3 {[%clk 0:00:49]}  Be6 {[%clk 0:00:08]} 22. Be4 {[%clk 0:00:49]}  Qb3 {[%clk 0:00:08]} 23. Qxb3 {[%clk 0:00:47]}  Rxb3 {[%clk 0:00:08]} 24. Bxc6 {[%clk 0:00:48]}  Rc8 {[%clk 0:00:09]} 25. Bxa4 {[%clk 0:00:43]}  Rxb2 {[%clk 0:00:09]} 26. Bd4 {[%clk 0:00:29]}  Ra2 {[%clk 0:00:09]} 27. Ra1 {[%clk 0:00:30]}  Rxa1 {[%clk 0:00:08]} 28. Rxa1 {[%clk 0:00:31]}  Nd5 {[%clk 0:00:09]} 29. Bb3 {[%clk 0:00:28]}  Kg7 {[%clk 0:00:09]} 30. a4 {[%clk 0:00:27]}  Nf4 {[%clk 0:00:09]} 31. Bxe6 {[%clk 0:00:25]}  Nxe6 {[%clk 0:00:09]} 32. Be3 {[%clk 0:00:25]}  f5 {[%clk 0:00:09]} 33. f4 {[%clk 0:00:22]}  f6 {[%clk 0:00:08]} 34. a5 {[%clk 0:00:23]}  g5 {[%clk 0:00:08]} 35. a6 {[%clk 0:00:18]}  Nd8 {[%clk 0:00:06]} 36. Rb1 {[%clk 0:00:15]}  Kg6 {[%clk 0:00:06]} 37. Rb6 {[%clk 0:00:14]}  gxf4 {[%clk 0:00:05]} 38. Bd4 {[%clk 0:00:12]}  Nc6 {[%clk 0:00:05]} 39. Bc3 {[%clk 0:00:09]}  f3 {[%clk 0:00:05]} 40. gxf3 {[%clk 0:00:10]}  f4 {[%clk 0:00:06]} 41. Kf2 {[%clk 0:00:10]}  Kf5 {[%clk 0:00:07]} 42. h4 {[%clk 0:00:08]}  Ke6 {[%clk 0:00:08]} 43. a7 {[%clk 0:00:07]}  Kd5 {[%clk 0:00:07]} 44. Bxf6 {[%clk 0:00:06]}  Nxa7 {[%clk 0:00:07]} 45. Rb7 {[%clk 0:00:05]}  Nc6 {[%clk 0:00:07]} 46. Rxh7 {[%clk 0:00:06]}  Kxc5 {[%clk 0:00:07]} 47. Bg5 {[%clk 0:00:07]}  Ra8 {[%clk 0:00:07]} 48. Bxf4 {[%clk 0:00:07]}  Ra2+ {[%clk 0:00:07]} 49. Kg3 {[%clk 0:00:07]}  Nd4 {[%clk 0:00:07]} 50. Be3 {[%clk 0:00:07]}  Ra3 {[%clk 0:00:06]} 51. Bxd4+ {[%clk 0:00:07]}  Kxd4 {[%clk 0:00:07]} 52. Re7 {[%clk 0:00:08]}  Kd5 {[%clk 0:00:08]} 53. Kg4 {[%clk 0:00:08]}  Kd6 {[%clk 0:00:08]} 54. Re1 {[%clk 0:00:08]}  Ra1 {[%clk 0:00:00]} 55. Rxa1 {[%clk 0:00:07]} 1-0

[Event "December 5 Late 2023"]
[Site "https://www.chess.com"]
[Date "2023.12.05"]
[Round "2"]
[White "Semenenko, Dmytry"]
[Black "Annaberdiyev, Meylis"]
[Result "1-0"]
[Board "77"]
[TimeControl "180+1"]
[WhiteFideId "14118645"]
[BlackFideId "14000563"]
[WhiteElo "2375"]
[BlackElo "2707"]
[WhiteTeam "UKR"]
[BlackTeam "TKM"]
[WhiteClock "0:00:05"]
[BlackClock "0:00:00"]

1. Nf3 {[%clk 0:03:00]}  Nf6 {[%clk 0:02:59]} 2. c4 {[%clk 0:03:00]}  e6 {[%clk 0:02:54]} 3. d4 {[%clk 0:03:00]}  d5 {[%clk 0:02:55]} 4. Nc3 {[%clk 0:03:00]}  Nbd7 {[%clk 0:02:55]} 5. Bf4 {[%clk 0:02:59]}  Bb4 {[%clk 0:02:55]} 6. e3 {[%clk 0:02:59]}  c5 {[%clk 0:02:55]} 7. a3 {[%clk 0:02:57]}  Bxc3+ {[%clk 0:02:55]} 8. bxc3 {[%clk 0:02:58]}  Qa5 {[%clk 0:02:55]} 9. Qc2 {[%clk 0:02:54]}  cxd4 {[%clk 0:02:45]} 10. exd4 {[%clk 0:02:51]}  O-O {[%clk 0:02:42]} 11. Bd3 {[%clk 0:02:50]}  dxc4 {[%clk 0:02:41]} 12. Bxc4 {[%clk 0:02:50]}  b6 {[%clk 0:02:38]} 13. O-O {[%clk 0:02:41]}  Bb7 {[%clk 0:02:36]} 14. Ne5 {[%clk 0:02:40]}  Rac8 {[%clk 0:02:32]} 15. Qb3 {[%clk 0:02:33]}  Bd5 {[%clk 0:02:07]} 16. Bxd5 {[%clk 0:01:43]}  Qxd5 {[%clk 0:02:04]} 17. Qxd5 {[%clk 0:01:41]}  exd5 {[%clk 0:02:05]} 18. Rfc1 {[%clk 0:01:34]}  Nxe5 {[%clk 0:02:01]} 19. Bxe5 {[%clk 0:01:32]}  Nd7 {[%clk 0:01:55]} 20. Bf4 {[%clk 0:01:30]}  Rfe8 {[%clk 0:01:53]} 21. Be3 {[%clk 0:01:27]}  Rc4 {[%clk 0:01:50]} 22. a4 {[%clk 0:01:25]}  Rec8 {[%clk 0:01:49]} 23. a5 {[%clk 0:01:20]}  b5 {[%clk 0:01:48]} 24. Bd2 {[%clk 0:01:14]}  a6 {[%clk 0:01:45]} 25. Re1 {[%clk 0:01:12]}  Kf8 {[%clk 0:01:40]} 26. Re2 {[%clk 0:01:08]}  Re8 {[%clk 0:01:40]} 27. Rae1 {[%clk 0:01:00]}  Rxe2 {[%clk 0:01:40]} 28. Rxe2 {[%clk 0:01:01]}  Rc6 {[%clk 0:01:29]} 29. f3 {[%clk 0:00:54]}  Re6 {[%clk 0:01:29]} 30. Rxe6 {[%clk 0:00:50]}  fxe6 {[%clk 0:01:29]} 31. Kf2 {[%clk 0:00:51]}  Nb8 {[%clk 0:01:25]} 32. Bf4 {[%clk 0:00:50]}  Nc6 {[%clk 0:01:23]} 33. Bc7 {[%clk 0:00:50]}  Ke7 {[%clk 0:01:23]} 34. Ke3 {[%clk 0:00:49]}  Kd7 {[%clk 0:01:22]} 35. Bb6 {[%clk 0:00:50]}  Ke7 {[%clk 0:01:08]} 36. Kf4 {[%clk 0:00:50]}  Kf6 {[%clk 0:01:08]} 37. h4 {[%clk 0:00:49]}  h5 {[%clk 0:01:07]} 38. g4 {[%clk 0:00:49]}  g6 {[%clk 0:01:07]} 39. Bc7 {[%clk 0:00:45]}  Kf7 {[%clk 0:00:35]} 40. Kg5 {[%clk 0:00:43]}  b4 {[%clk 0:00:15]} 41. cxb4 {[%clk 0:00:41]}  Nxd4 {[%clk 0:00:15]} 42. gxh5 {[%clk 0:00:39]}  gxh5 {[%clk 0:00:15]} 43. Kxh5 {[%clk 0:00:37]}  Nb5 {[%clk 0:00:06]} 44. Be5 {[%clk 0:00:33]}  d4 {[%clk 0:00:06]} 45. Kg4 {[%clk 0:00:21]}  d3 {[%clk 0:00:07]} 46. Bf4 {[%clk 0:00:21]}  e5 {[%clk 0:00:07]} 47. Be3 {[%clk 0:00:19]}  Nd4 {[%clk 0:00:07]} 48. h5 {[%clk 0:00:13]}  Nb3 {[%clk 0:00:06]} 49. Kf5 {[%clk 0:00:10]}  d2 {[%clk 0:00:04]} 50. Bxd2 {[%clk 0:00:10]}  Nxd2 {[%clk 0:00:04]} 51. b5 {[%clk 0:00:06]}  axb5 {[%clk 0:00:03]} 52. a6 {[%clk 0:00:06]}  Nc4 {[%clk 0:00:03]} 53. a7 {[%clk 0:00:05]}  Nb6 {[%clk 0:00:04]} 54. Kxe5 {[%clk 0:00:05]}  b4 {[%clk 0:00:02]} 55. Kd4 {[%clk 0:00:05]}  Kf6 {[%clk 0:00:01]} 56. f4 {[%clk 0:00:06]}  Kf5 {[%clk 0:00:00]} 57. Kc5 {[%clk 0:00:05]} 1-0